[Event "*** Titled Tuesday Blitz"]
[Site "Chess.com"]
[Date "2018.06.05"]
[Round "6"]
[White "DSCC1"]
[Black "Colombiano07"]
[Result "1/2-1/2"]
[WhiteElo "2158"]
[BlackElo "2244"]
[TimeControl "180+2"]
[EndTime "14:28:56 PDT"]
[Termination "Game drawn by repetition"]

1. d4 {[%clk 0:03:01.9]} 1... Nf6 {[%clk 0:03:00.4]} 2. Nf3 {[%clk 0:03:03.1]}
2... g6 {[%clk 0:03:00.9]} 3. Bf4 {[%clk 0:03:04.4]} 3... Bg7 {[%clk 0:03:01.4]}
4. e3 {[%clk 0:03:06]} 4... O-O {[%clk 0:03:03.1]} 5. Be2 {[%clk 0:03:07.4]}
5... c5 {[%clk 0:03:04.6]} 6. c3 {[%clk 0:03:04.9]} 6... d6 {[%clk 0:03:04.9]}
7. dxc5 {[%clk 0:02:54.1]} 7... dxc5 {[%clk 0:03:05.5]} 8. Qxd8 {[%clk
0:02:53.9]} 8... Rxd8 {[%clk 0:03:07.4]} 9. O-O {[%clk 0:02:54.7]} 9... Nc6
{[%clk 0:03:08.1]} 10. Na3 {[%clk 0:02:52.7]} 10... Bf5 {[%clk 0:03:07.8]} 11.
Rfd1 {[%clk 0:02:51.1]} 11... Nd5 {[%clk 0:02:52.3]} 12. Bg3 {[%clk 0:02:48.2]}
12... Bf6 {[%clk 0:02:41.4]} 13. Nc4 {[%clk 0:02:31.4]} 13... b6 {[%clk
0:02:08.1]} 14. Nfe5 {[%clk 0:02:23.7]} 14... Nxe5 {[%clk 0:02:07.6]} 15. Bxe5
{[%clk 0:02:13.1]} 15... Kg7 {[%clk 0:02:06.1]} 16. Bxf6+ {[%clk 0:01:23.1]}
16... Nxf6 {[%clk 0:02:05.4]} 17. Bf3 {[%clk 0:01:14.2]} 17... Be4 {[%clk
0:02:05.5]} 18. Bxe4 {[%clk 0:01:12.1]} 18... Nxe4 {[%clk 0:02:07.4]} 19. f3
{[%clk 0:01:12.7]} 19... Nd6 {[%clk 0:02:03.6]} 20. Nxd6 {[%clk 0:01:11.9]}
20... Rxd6 {[%clk 0:02:05.5]} 21. Rxd6 {[%clk 0:01:10.2]} 21... exd6 {[%clk
0:02:07.4]} 22. e4 {[%clk 0:01:07.4]} 22... Kf6 {[%clk 0:02:07.5]} 23. Rd1
{[%clk 0:01:06.5]} 23... Ke6 {[%clk 0:02:08.3]} 24. Kf2 {[%clk 0:01:04.8]} 24...
f5 {[%clk 0:02:05.7]} 25. exf5+ {[%clk 0:01:05.6]} 25... gxf5 {[%clk 0:02:07.6]}
26. Ke3 {[%clk 0:01:05]} 26... Ke5 {[%clk 0:02:06.2]} 27. c4 {[%clk 0:01:01.5]}
27... f4+ {[%clk 0:02:06.6]} 28. Kf2 {[%clk 0:01:02.4]} 28... b5 {[%clk
0:01:59]} 29. Re1+ {[%clk 0:00:37.4]} 29... Kf5 {[%clk 0:01:44.9]} 30. Rd1
{[%clk 0:00:31]} 30... Ke6 {[%clk 0:01:32.6]} 31. Re1+ {[%clk 0:00:26.6]} 31...
Kd7 {[%clk 0:01:32.2]} 32. Re4 {[%clk 0:00:18.1]} 32... bxc4 {[%clk 0:01:31.3]}
33. Rxc4 {[%clk 0:00:19.1]} 33... Rb8 {[%clk 0:01:30.6]} 34. b3 {[%clk
0:00:19.3]} 34... Rf8 {[%clk 0:01:12.6]} 35. b4 {[%clk 0:00:17.8]} 35... Kc6
{[%clk 0:00:50.7]} 36. bxc5 {[%clk 0:00:18.3]} 36... d5 {[%clk 0:00:52.2]} 37.
Ra4 {[%clk 0:00:16.7]} 37... Kxc5 {[%clk 0:00:54.1]} 38. Rxa7 {[%clk 0:00:15.1]}
38... Rb8 {[%clk 0:00:55.2]} 39. g3 {[%clk 0:00:09.2]} 39... Rb2+ {[%clk
0:00:55.6]} 40. Kg1 {[%clk 0:00:09.8]} 40... fxg3 {[%clk 0:00:53.7]} 41. hxg3
{[%clk 0:00:11.4]} 41... Kd4 {[%clk 0:00:50.8]} 42. Kf1 {[%clk 0:00:09.6]} 42...
Ke3 {[%clk 0:00:51.9]} 43. f4 {[%clk 0:00:04.1]} 43... d4 {[%clk 0:00:52]} 44.
Re7+ {[%clk 0:00:04.1]} 44... Kf3 {[%clk 0:00:52.9]} 45. Ke1 {[%clk 0:00:04.7]}
45... Rxa2 {[%clk 0:00:53.3]} 46. Rxh7 {[%clk 0:00:05.2]} 46... d3 {[%clk
0:00:47.2]} 47. Kd1 {[%clk 0:00:05.2]} 47... Rf2 {[%clk 0:00:42.4]} 48. f5
{[%clk 0:00:04.7]} 48... Kxg3 {[%clk 0:00:43.4]} 49. f6 {[%clk 0:00:03.8]} 49...
Rxf6 {[%clk 0:00:43.6]} 50. Kd2 {[%clk 0:00:04.1]} 50... Rd6 {[%clk 0:00:44.6]}
51. Rf7 {[%clk 0:00:04.2]} 51... Kg4 {[%clk 0:00:45.6]} 52. Rf1 {[%clk
0:00:04.8]} 52... Kg3 {[%clk 0:00:46.7]} 53. Rf8 {[%clk 0:00:05.4]} 53... Kg4
{[%clk 0:00:47.9]} 54. Rf1 {[%clk 0:00:06.1]} 54... Kg3 {[%clk 0:00:49.1]} 55.
Rf8 {[%clk 0:00:07.1]} 55... Kg4 {[%clk 0:00:50.4]} 56. Rf1 {[%clk 0:00:07.9]}
56... Kg3 {[%clk 0:00:51.6]} 57. Rf8 {[%clk 0:00:08.9]} 57... Kg4 {[%clk
0:00:52.9]} 1/2-1/2

[Event "*** Titled Tuesday Blitz"]
[Site "Chess.com"]
[Date "2018.06.05"]
[Round "6"]
[White "rasmussvane"]
[Black "Anton_Demchenko"]
[Result "0-1"]
[WhiteElo "2589"]
[BlackElo "2771"]
[TimeControl "180+2"]
[EndTime "14:28:57 PDT"]
[Termination "Anton_Demchenko won by resignation"]

1. Nf3 {[%clk 0:03:01.9]} 1... Nf6 {[%clk 0:02:59.6]} 2. c4 {[%clk 0:03:02.5]}
2... g6 {[%clk 0:03:00.6]} 3. Nc3 {[%clk 0:03:01.8]} 3... Bg7 {[%clk 0:03:02.5]}
4. e4 {[%clk 0:03:02.4]} 4... d6 {[%clk 0:03:03.4]} 5. d4 {[%clk 0:03:03.9]}
5... O-O {[%clk 0:03:04.5]} 6. Be2 {[%clk 0:03:05.5]} 6... Na6 {[%clk
0:03:05.8]} 7. O-O {[%clk 0:03:06.6]} 7... e5 {[%clk 0:03:07.1]} 8. Be3 {[%clk
0:03:07.7]} 8... c6 {[%clk 0:03:08.2]} 9. Qc2 {[%clk 0:03:08.2]} 9... Ng4 {[%clk
0:02:59.8]} 10. Bg5 {[%clk 0:03:08.4]} 10... f6 {[%clk 0:03:01]} 11. Bh4 {[%clk
0:03:08.5]} 11... Kh8 {[%clk 0:02:58.6]} 12. Rad1 {[%clk 0:03:08.7]} 12... Qe8
{[%clk 0:02:59.3]} 13. Rfe1 {[%clk 0:02:59.4]} 13... Nh6 {[%clk 0:02:53.8]} 14.
Bg3 {[%clk 0:02:40.5]} 14... Nf7 {[%clk 0:02:48.1]} 15. Qd2 {[%clk 0:02:38.5]}
15... Bh6 {[%clk 0:02:44.5]} 16. Qc2 {[%clk 0:02:39.1]} 16... Bd7 {[%clk
0:02:27.1]} 17. a3 {[%clk 0:02:16.2]} 17... Rc8 {[%clk 0:01:34]} 18. b4 {[%clk
0:02:14.8]} 18... Nc7 {[%clk 0:01:34.9]} 19. c5 {[%clk 0:02:13.3]} 19... exd4
{[%clk 0:01:10.4]} 20. Nxd4 {[%clk 0:02:12.7]} 20... dxc5 {[%clk 0:01:11.7]} 21.
bxc5 {[%clk 0:02:13.9]} 21... Ne6 {[%clk 0:01:12.9]} 22. Nb3 {[%clk 0:01:39]}
22... Nf4 {[%clk 0:00:58]} 23. Bf1 {[%clk 0:01:35.2]} 23... Ne5 {[%clk
0:00:55.5]} 24. Na5 {[%clk 0:01:30.3]} 24... b6 {[%clk 0:00:52.5]} 25. cxb6
{[%clk 0:01:17.1]} 25... axb6 {[%clk 0:00:53.4]} 26. Nc4 {[%clk 0:01:18.6]}
26... Rb8 {[%clk 0:00:54.8]} 27. Rd6 {[%clk 0:01:09.6]} 27... b5 {[%clk
0:00:24.9]} 28. Nxe5 {[%clk 0:01:04.1]} 28... fxe5 {[%clk 0:00:26.8]} 29. Red1
{[%clk 0:00:48.7]} 29... Rb7 {[%clk 0:00:27.9]} 30. Na2 {[%clk 0:00:46.7]} 30...
Qf7 {[%clk 0:00:17.4]} 31. Nb4 {[%clk 0:00:44.3]} 31... Bg7 {[%clk 0:00:16.8]}
32. Nxc6 {[%clk 0:00:37.4]} 32... Rc8 {[%clk 0:00:15.1]} 33. Qc5 {[%clk
0:00:37.9]} 33... Qe8 {[%clk 0:00:07.8]} 34. Rc1 {[%clk 0:00:25.6]} 34... Bf8
{[%clk 0:00:06.1]} 35. Bxf4 {[%clk 0:00:15.7]} 35... exf4 {[%clk 0:00:06]} 36.
Qd4+ {[%clk 0:00:16]} 36... Kg8 {[%clk 0:00:05.1]} 37. Qd5+ {[%clk 0:00:16.2]}
37... Kh8 {[%clk 0:00:06.2]} 38. e5 {[%clk 0:00:14.7]} 38... Bxd6 {[%clk
0:00:04.4]} 39. Qxd6 {[%clk 0:00:12.2]} 39... Rxc6 {[%clk 0:00:04.1]} 40. Rxc6
{[%clk 0:00:11.5]} 40... Bxc6 {[%clk 0:00:06]} 41. Qf6+ {[%clk 0:00:12.6]} 41...
Rg7 {[%clk 0:00:07.1]} 42. Qxf4 {[%clk 0:00:13]} 42... Bd5 {[%clk 0:00:07.7]}
43. Qf6 {[%clk 0:00:13.6]} 43... Qe7 {[%clk 0:00:08]} 44. Qa6 {[%clk 0:00:12.2]}
44... Qxe5 {[%clk 0:00:08.3]} 45. Qc8+ {[%clk 0:00:13.4]} 45... Bg8 {[%clk
0:00:08.8]} 46. Qc5 {[%clk 0:00:14.8]} 46... Qxc5 {[%clk 0:00:09.4]} 0-1

[Event "*** Titled Tuesday Blitz"]
[Site "Chess.com"]
[Date "2018.06.05"]
[Round "6"]
[White "Arystanner23"]
[Black "PrinceMurad09"]
[Result "1-0"]
[WhiteElo "2633"]
[BlackElo "2424"]
[TimeControl "180+2"]
[EndTime "14:28:57 PDT"]
[Termination "Arystanner23 won by resignation"]

1. e4 {[%clk 0:03:01.9]} 1... c5 {[%clk 0:02:58.9]} 2. Nf3 {[%clk 0:03:02.9]}
2... d6 {[%clk 0:03:00]} 3. Nc3 {[%clk 0:03:03.9]} 3... Nf6 {[%clk 0:03:00.3]}
4. e5 {[%clk 0:03:05.1]} 4... dxe5 {[%clk 0:03:01.4]} 5. Nxe5 {[%clk 0:03:07]}
5... Nbd7 {[%clk 0:03:03]} 6. Bb5 {[%clk 0:03:07.5]} 6... a6 {[%clk 0:03:04.5]}
7. Bxd7+ {[%clk 0:03:07.9]} 7... Nxd7 {[%clk 0:03:05.9]} 8. d4 {[%clk
0:03:08.8]} 8... cxd4 {[%clk 0:03:03.9]} 9. Qxd4 {[%clk 0:03:07.9]} 9... Nxe5
{[%clk 0:03:04.8]} 10. Qxe5 {[%clk 0:03:08.9]} 10... e6 {[%clk 0:03:05.3]} 11.
Bf4 {[%clk 0:03:00.8]} 11... Qf6 {[%clk 0:03:01.2]} 12. O-O-O {[%clk 0:02:52.7]}
12... Qxe5 {[%clk 0:02:58.8]} 13. Bxe5 {[%clk 0:02:53.8]} 13... f6 {[%clk
0:03:00.3]} 14. Bc7 {[%clk 0:02:50]} 14... Bd7 {[%clk 0:02:50]} 15. Ne4 {[%clk
0:02:44]} 15... Rc8 {[%clk 0:02:50.4]} 16. Nd6+ {[%clk 0:02:33.9]} 16... Bxd6
{[%clk 0:02:51]} 17. Bxd6 {[%clk 0:02:35.8]} 17... e5 {[%clk 0:02:46.1]} 18. b3
{[%clk 0:02:33.8]} 18... Bf5 {[%clk 0:02:44.8]} 19. Rd2 {[%clk 0:02:33.1]} 19...
Kf7 {[%clk 0:02:45.1]} 20. Kb2 {[%clk 0:02:29.7]} 20... b5 {[%clk 0:02:44.9]}
21. Rhd1 {[%clk 0:02:23.2]} 21... Rc6 {[%clk 0:02:45.7]} 22. c3 {[%clk
0:02:20.8]} 22... Rhc8 {[%clk 0:02:46.2]} 23. Bb4 {[%clk 0:02:21.6]} 23... Be6
{[%clk 0:02:44.7]} 24. f3 {[%clk 0:02:18.6]} 24... h5 {[%clk 0:02:45.5]} 25. Rd8
{[%clk 0:02:19.2]} 25... Rxd8 {[%clk 0:02:46.2]} 26. Rxd8 {[%clk 0:02:19.9]}
26... Bf5 {[%clk 0:02:38.3]} 27. a4 {[%clk 0:02:18.3]} 27... bxa4 {[%clk
0:02:38.3]} 28. bxa4 {[%clk 0:02:20.2]} 28... e4 {[%clk 0:02:37.9]} 29. fxe4
{[%clk 0:02:18.7]} 29... Bxe4 {[%clk 0:02:39.8]} 30. g3 {[%clk 0:02:19.8]} 30...
Bf5 {[%clk 0:02:36.7]} 31. a5 {[%clk 0:02:17]} 31... Be6 {[%clk 0:02:37.3]} 32.
Rb8 {[%clk 0:02:13.5]} 32... Rc7 {[%clk 0:02:29.2]} 33. Rb6 {[%clk 0:02:05.2]}
33... Bc4 {[%clk 0:02:29.5]} 34. Bd6 {[%clk 0:02:03.7]} 34... Rc8 {[%clk
0:02:25.6]} 35. Ka3 {[%clk 0:02:01.7]} 35... Bb5 {[%clk 0:02:23.5]} 36. Kb4
{[%clk 0:01:51.4]} 36... g6 {[%clk 0:02:21.4]} 37. Bc5 {[%clk 0:01:33.5]} 37...
g5 {[%clk 0:02:17.8]} 38. Rxb5 {[%clk 0:01:26.5]} 38... axb5 {[%clk 0:02:15.6]}
39. Kxb5 {[%clk 0:01:27.6]} 39... Ke6 {[%clk 0:02:03.2]} 40. a6 {[%clk
0:01:28.1]} 40... Kd5 {[%clk 0:02:04.5]} 41. c4+ {[%clk 0:01:26]} 41... Ke6
{[%clk 0:02:02.6]} 42. a7 {[%clk 0:01:19.9]} 42... Kd7 {[%clk 0:02:01.5]} 43.
Kb6 {[%clk 0:01:20.9]} 43... Rc6+ {[%clk 0:01:57.5]} 44. Kb7 {[%clk 0:01:17]}
44... Rc7+ {[%clk 0:01:57.4]} 45. Ka6 {[%clk 0:01:17.6]} 45... Rc8 {[%clk
0:01:53.7]} 46. Bd4 {[%clk 0:01:12.9]} 46... Rxc4 {[%clk 0:01:23.3]} 47. a8=Q
{[%clk 0:00:46.4]} 47... Ra4+ {[%clk 0:01:23.7]} 48. Kb7 {[%clk 0:00:47.6]}
48... Rxa8 {[%clk 0:01:24.6]} 49. Kxa8 {[%clk 0:00:49.5]} 49... Ke6 {[%clk
0:00:58.1]} 50. Kb7 {[%clk 0:00:50.5]} 50... h4 {[%clk 0:00:58.9]} 51. gxh4
{[%clk 0:00:42.1]} 51... gxh4 {[%clk 0:01:00.2]} 52. Kc6 {[%clk 0:00:41]} 52...
f5 {[%clk 0:01:00.7]} 53. Bf2 {[%clk 0:00:38.2]} 53... h3 {[%clk 0:00:59.6]} 54.
Bg3 {[%clk 0:00:39.3]} 54... Kf6 {[%clk 0:00:57.6]} 55. Kd5 {[%clk 0:00:39.6]}
55... Kg5 {[%clk 0:00:58.5]} 56. Ke5 {[%clk 0:00:39.2]} 56... Kg4 {[%clk
0:00:59.9]} 57. Bf4 {[%clk 0:00:40.1]} 57... Kf3 {[%clk 0:00:56.3]} 58. Kxf5
{[%clk 0:00:40.5]} 58... Kf2 {[%clk 0:00:57.4]} 59. Kg4 {[%clk 0:00:41.6]} 59...
Kg2 {[%clk 0:00:59]} 60. Bg3 {[%clk 0:00:42.9]} 1-0

[Event "*** Titled Tuesday Blitz"]
[Site "Chess.com"]
[Date "2018.06.05"]
[Round "6"]
[White "AsaHoffmann"]
[Black "guillembaches"]
[Result "1/2-1/2"]
[WhiteElo "2075"]
[BlackElo "2216"]
[TimeControl "180+2"]
[EndTime "14:29:01 PDT"]
[Termination "Game drawn by agreement"]

1. d4 {[%clk 0:02:50]} 1... Nf6 {[%clk 0:02:45.1]} 2. Bg5 {[%clk 0:02:48.9]}
2... e6 {[%clk 0:02:45.5]} 3. Nd2 {[%clk 0:02:49.2]} 3... h6 {[%clk 0:02:45.9]}
4. Bh4 {[%clk 0:02:49.9]} 4... c5 {[%clk 0:02:44.6]} 5. e3 {[%clk 0:02:50.7]}
5... b6 {[%clk 0:02:38.1]} 6. Ngf3 {[%clk 0:02:46.4]} 6... Bb7 {[%clk
0:02:38.4]} 7. Bd3 {[%clk 0:02:45.2]} 7... Be7 {[%clk 0:02:35.4]} 8. Qe2 {[%clk
0:02:45.3]} 8... d6 {[%clk 0:02:34.3]} 9. O-O {[%clk 0:02:38.2]} 9... Nbd7
{[%clk 0:02:34.9]} 10. c3 {[%clk 0:02:38.8]} 10... a6 {[%clk 0:02:34.5]} 11. h3
{[%clk 0:02:39.1]} 11... cxd4 {[%clk 0:02:30.8]} 12. exd4 {[%clk 0:02:39.6]}
12... O-O {[%clk 0:02:30.5]} 13. Bg3 {[%clk 0:02:40.2]} 13... Re8 {[%clk
0:02:25.8]} 14. Nc4 {[%clk 0:02:40]} 14... Qc7 {[%clk 0:02:24.6]} 15. Nfd2
{[%clk 0:02:40.2]} 15... Bf8 {[%clk 0:02:17.2]} 16. Rfe1 {[%clk 0:02:40.5]}
16... Bd5 {[%clk 0:02:04.7]} 17. Ne3 {[%clk 0:02:38.9]} 17... Bb7 {[%clk
0:02:04.5]} 18. Ng4 {[%clk 0:02:37]} 18... Qc6 {[%clk 0:01:59]} 19. f3 {[%clk
0:02:31]} 19... e5 {[%clk 0:01:50]} 20. dxe5 {[%clk 0:02:28.3]} 20... Nxg4
{[%clk 0:01:49.1]} 21. hxg4 {[%clk 0:02:26.3]} 21... Nxe5 {[%clk 0:01:48.6]} 22.
Be4 {[%clk 0:02:24]} 22... d5 {[%clk 0:01:46.1]} 23. Bc2 {[%clk 0:02:20.1]}
23... Nxg4 {[%clk 0:01:45.8]} 24. Qd3 {[%clk 0:02:16.5]} 24... Nf6 {[%clk
0:01:27.3]} 25. Nb3 {[%clk 0:02:12.4]} 25... g6 {[%clk 0:01:22.5]} 26. Nd4
{[%clk 0:02:10.9]} 26... Qd7 {[%clk 0:01:23.4]} 27. Rxe8 {[%clk 0:02:03.7]}
27... Rxe8 {[%clk 0:01:23.7]} 28. Re1 {[%clk 0:02:03.8]} 28... Nh5 {[%clk
0:01:18.8]} 29. Rxe8 {[%clk 0:01:55.7]} 29... Qxe8 {[%clk 0:01:20.7]} 30. Bf2
{[%clk 0:01:51.6]} 30... Bd6 {[%clk 0:01:19.9]} 31. Qe3 {[%clk 0:01:48.3]} 31...
Qxe3 {[%clk 0:01:11.6]} 32. Bxe3 {[%clk 0:01:48.8]} 32... Bf4 {[%clk 0:01:12.5]}
33. Bf2 {[%clk 0:01:48.8]} 33... Bc1 {[%clk 0:01:09.7]} 34. b3 {[%clk
0:01:44.5]} 34... b5 {[%clk 0:01:10.1]} 35. Ne2 {[%clk 0:01:39.3]} 35... Bd2
{[%clk 0:01:07.7]} 36. Bd4 {[%clk 0:01:39.8]} 36... Kf8 {[%clk 0:01:04.8]} 37.
Kf2 {[%clk 0:01:39.8]} 37... Ke7 {[%clk 0:01:05.4]} 38. a4 {[%clk 0:01:29.4]}
38... Nf4 {[%clk 0:01:01]} 39. axb5 {[%clk 0:01:26.4]} 39... axb5 {[%clk
0:01:01]} 40. Nxf4 {[%clk 0:01:26.3]} 40... Bxf4 {[%clk 0:01:01.3]} 41. Bd3
{[%clk 0:01:25.1]} 41... Bc6 {[%clk 0:01:01.9]} 42. g3 {[%clk 0:01:25.1]} 42...
Bd6 {[%clk 0:01:02.1]} 43. f4 {[%clk 0:01:25]} 43... Ke6 {[%clk 0:01:01.5]} 44.
Kf3 {[%clk 0:01:24.5]} 44... h5 {[%clk 0:01:01.8]} 45. Ke3 {[%clk 0:01:21]}
45... Be7 {[%clk 0:01:02.4]} 46. Be2 {[%clk 0:01:20.9]} 46... f5 {[%clk
0:00:48.5]} 47. Bf3 {[%clk 0:01:20.3]} 47... h4 {[%clk 0:00:48.5]} 48. gxh4
{[%clk 0:01:19.7]} 48... Bxh4 {[%clk 0:00:49]} 49. c4 {[%clk 0:01:20.1]} 49...
bxc4 {[%clk 0:00:49.6]} 50. bxc4 {[%clk 0:01:20.8]} 50... Bd8 {[%clk 0:00:46.5]}
51. Be5 {[%clk 0:01:20.3]} 51... Bb6+ {[%clk 0:00:44.6]} 52. Kd2 {[%clk
0:01:16.9]} 52... g5 {[%clk 0:00:40.8]} 53. Bg2 {[%clk 0:01:09.4]} 53... Bc5
{[%clk 0:00:31.3]} 54. Ke2 {[%clk 0:01:06.6]} 54... Bd6 {[%clk 0:00:16.4]} 55.
Bxd6 {[%clk 0:01:03.1]} 55... Kxd6 {[%clk 0:00:16.8]} 56. cxd5 {[%clk
0:01:02.5]} 56... Bxd5 {[%clk 0:00:17.9]} 57. Bxd5 {[%clk 0:01:03]} 57... gxf4
{[%clk 0:00:17.2]} 58. Bf3 {[%clk 0:01:02.2]} 58... Kc7 {[%clk 0:00:17]} 59. Kd3
{[%clk 0:01:02.4]} 59... Kb6 {[%clk 0:00:14.3]} 1/2-1/2

[Event "*** Titled Tuesday Blitz"]
[Site "Chess.com"]
[Date "2018.06.05"]
[Round "6"]
[White "Arash-Tiger"]
[Black "attack2mateU"]
[Result "1-0"]
[WhiteElo "2796"]
[BlackElo "2686"]
[TimeControl "180+2"]
[EndTime "14:29:09 PDT"]
[Termination "Arash-Tiger won by resignation"]

1. e4 {[%clk 0:03:01.9]} 1... c5 {[%clk 0:03:00.4]} 2. Nf3 {[%clk 0:02:52.3]}
2... d6 {[%clk 0:03:01.2]} 3. d4 {[%clk 0:02:41.6]} 3... cxd4 {[%clk 0:03:03.1]}
4. Nxd4 {[%clk 0:02:43]} 4... Nf6 {[%clk 0:03:04.5]} 5. Nc3 {[%clk 0:02:44.4]}
5... a6 {[%clk 0:03:05.4]} 6. Bg5 {[%clk 0:02:44.6]} 6... Nbd7 {[%clk
0:03:05.8]} 7. Qe2 {[%clk 0:02:43.9]} 7... b5 {[%clk 0:03:02.2]} 8. g3 {[%clk
0:02:37.6]} 8... Bb7 {[%clk 0:02:50.5]} 9. Bg2 {[%clk 0:02:37.4]} 9... e5 {[%clk
0:02:49.3]} 10. Nf5 {[%clk 0:02:35.4]} 10... h6 {[%clk 0:02:38.8]} 11. Bxf6
{[%clk 0:02:33]} 11... Nxf6 {[%clk 0:02:39.6]} 12. O-O-O {[%clk 0:02:33.2]}
12... Qc7 {[%clk 0:02:21]} 13. a3 {[%clk 0:02:31.6]} 13... g6 {[%clk 0:02:10.8]}
14. Ne3 {[%clk 0:02:30]} 14... Be7 {[%clk 0:02:07]} 15. Ncd5 {[%clk 0:02:31]}
15... Bxd5 {[%clk 0:02:07.1]} 16. Nxd5 {[%clk 0:02:30.9]} 16... Nxd5 {[%clk
0:02:07.9]} 17. Rxd5 {[%clk 0:02:29.8]} 17... O-O {[%clk 0:02:07.9]} 18. h4
{[%clk 0:02:29.8]} 18... Rab8 {[%clk 0:02:04.5]} 19. h5 {[%clk 0:02:25.2]} 19...
g5 {[%clk 0:02:02.4]} 20. b3 {[%clk 0:02:23.3]} 20... Qc3 {[%clk 0:01:22.9]} 21.
Kb1 {[%clk 0:02:23.4]} 21... Rfc8 {[%clk 0:01:24.2]} 22. Bh3 {[%clk 0:02:22.8]}
22... Rc7 {[%clk 0:01:24.9]} 23. Rhd1 {[%clk 0:02:22.5]} 23... a5 {[%clk
0:01:19]} 24. Qd3 {[%clk 0:02:19.2]} 24... Qc6 {[%clk 0:01:15.5]} 25. Bf5 {[%clk
0:02:17.1]} 25... Kg7 {[%clk 0:01:13.7]} 26. Bh3 {[%clk 0:02:13.5]} 26... Qb6
{[%clk 0:01:07.3]} 27. Rd2 {[%clk 0:02:11.4]} 27... Rbb7 {[%clk 0:00:51.3]} 28.
Bf1 {[%clk 0:02:09.4]} 28... b4 {[%clk 0:00:50.4]} 29. a4 {[%clk 0:02:10.4]}
29... Rc3 {[%clk 0:00:50.9]} 30. Qa6 {[%clk 0:02:07.9]} 30... Qxa6 {[%clk
0:00:32.7]} 31. Bxa6 {[%clk 0:02:09.8]} 31... Ra7 {[%clk 0:00:33.4]} 32. Be2
{[%clk 0:02:09.5]} 32... Kf6 {[%clk 0:00:28.9]} 33. Rb5 {[%clk 0:02:10]} 33...
Rc5 {[%clk 0:00:20]} 34. Rxc5 {[%clk 0:02:08.4]} 34... dxc5 {[%clk 0:00:21.9]}
35. Bc4 {[%clk 0:02:09.3]} 35... Rb7 {[%clk 0:00:16.7]} 36. Rd5 {[%clk
0:01:59.1]} 36... Rc7 {[%clk 0:00:17]} 37. Kc1 {[%clk 0:01:57.5]} 37... Rb7
{[%clk 0:00:13.3]} 38. Kd1 {[%clk 0:01:58.5]} 38... Rb8 {[%clk 0:00:14.3]} 39.
Ke2 {[%clk 0:01:56]} 39... Rd8 {[%clk 0:00:15.7]} 40. g4 {[%clk 0:01:52]} 40...
Rxd5 {[%clk 0:00:16.1]} 41. Bxd5 {[%clk 0:01:49.3]} 41... Bd8 {[%clk 0:00:15.7]}
42. Kd3 {[%clk 0:01:50.3]} 42... Ke7 {[%clk 0:00:16.7]} 43. Kc4 {[%clk
0:01:51.3]} 43... Kd6 {[%clk 0:00:16.7]} 44. Bxf7 {[%clk 0:01:44.9]} 44... Bc7
{[%clk 0:00:14]} 45. Kb5 {[%clk 0:01:45.1]} 45... Bd8 {[%clk 0:00:15.2]} 46. Ka6
{[%clk 0:01:43.9]} 46... Bc7 {[%clk 0:00:14.4]} 47. Kb7 {[%clk 0:01:43.1]} 47...
Bd8 {[%clk 0:00:15.5]} 48. Bc4 {[%clk 0:01:43.1]} 48... Bc7 {[%clk 0:00:16.5]}
49. f4 {[%clk 0:01:30.4]} 49... gxf4 {[%clk 0:00:15.9]} 50. g5 {[%clk 0:01:31]}
50... hxg5 {[%clk 0:00:17]} 51. Kc8 {[%clk 0:01:27.6]} 51... Ke7 {[%clk
0:00:03.7]} 52. Kxc7 {[%clk 0:01:09.9]} 52... g4 {[%clk 0:00:03.9]} 53. Be2
{[%clk 0:01:10.8]} 53... f3 {[%clk 0:00:04.3]} 54. Bd1 {[%clk 0:01:11.9]} 54...
Kf6 {[%clk 0:00:05.1]} 55. Kd6 {[%clk 0:01:11.1]} 55... Kg5 {[%clk 0:00:04.9]}
56. Kxe5 {[%clk 0:01:11.9]} 56... Kxh5 {[%clk 0:00:03]} 57. Kf4 {[%clk
0:01:12.2]} 57... f2 {[%clk 0:00:03.2]} 58. Be2 {[%clk 0:01:12.7]} 58... Kh4
{[%clk 0:00:04.1]} 59. Bf1 {[%clk 0:01:10.5]} 59... g3 {[%clk 0:00:04.3]} 60. e5
{[%clk 0:01:09]} 1-0

[Event "*** Titled Tuesday Blitz"]
[Site "Chess.com"]
[Date "2018.06.05"]
[Round "6"]
[White "nihalsarin"]
[Black "NikolaGry"]
[Result "1-0"]
[WhiteElo "2755"]
[BlackElo "2602"]
[TimeControl "180+2"]
[EndTime "14:29:10 PDT"]
[Termination "nihalsarin won on time"]

1. c4 {[%clk 0:03:01.3]} 1... e6 {[%clk 0:02:59]} 2. Nc3 {[%clk 0:02:59.9]} 2...
d5 {[%clk 0:02:59.6]} 3. d4 {[%clk 0:03:00.9]} 3... Nf6 {[%clk 0:02:59.9]} 4.
Nf3 {[%clk 0:03:01.7]} 4... Bb4 {[%clk 0:02:59.7]} 5. Bg5 {[%clk 0:03:00]} 5...
Nbd7 {[%clk 0:02:59.1]} 6. cxd5 {[%clk 0:02:56.9]} 6... exd5 {[%clk 0:02:59]} 7.
Qc2 {[%clk 0:02:58.2]} 7... c5 {[%clk 0:02:49.6]} 8. dxc5 {[%clk 0:02:58.7]}
8... Qa5 {[%clk 0:02:49.1]} 9. Bd2 {[%clk 0:02:59.2]} 9... Qxc5 {[%clk
0:02:25.7]} 10. Rc1 {[%clk 0:02:49.4]} 10... d4 {[%clk 0:02:01.4]} 11. Ne4
{[%clk 0:02:09.5]} 11... Qxc2 {[%clk 0:01:55.8]} 12. Rxc2 {[%clk 0:02:08.8]}
12... d3 {[%clk 0:01:24]} 13. exd3 {[%clk 0:02:04.7]} 13... Bxd2+ {[%clk
0:01:20.7]} 14. Rxd2 {[%clk 0:02:05.9]} 14... O-O {[%clk 0:01:21.2]} 15. Be2
{[%clk 0:02:06.8]} 15... Re8 {[%clk 0:01:15.7]} 16. Nd6 {[%clk 0:01:50.2]} 16...
Rd8 {[%clk 0:01:05.8]} 17. O-O {[%clk 0:01:48.7]} 17... Nb6 {[%clk 0:01:01.2]}
18. Nxc8 {[%clk 0:01:48.1]} 18... Raxc8 {[%clk 0:01:01.5]} 19. d4 {[%clk
0:01:49.4]} 19... Ne4 {[%clk 0:00:49]} 20. Rdd1 {[%clk 0:01:47.7]} 20... Nd6
{[%clk 0:00:44.3]} 21. Rc1 {[%clk 0:01:35.8]} 21... g6 {[%clk 0:00:42.9]} 22. g3
{[%clk 0:01:32.5]} 22... Nf5 {[%clk 0:00:34.6]} 23. Rxc8 {[%clk 0:01:26.3]}
23... Rxc8 {[%clk 0:00:34.7]} 24. Bd3 {[%clk 0:01:27.5]} 24... Nxd4 {[%clk
0:00:26]} 25. Nxd4 {[%clk 0:01:25.2]} 25... Rd8 {[%clk 0:00:26.1]} 26. Bxg6
{[%clk 0:01:10.6]} 26... hxg6 {[%clk 0:00:26.2]} 27. Nf3 {[%clk 0:01:11.9]}
27... Nc4 {[%clk 0:00:23.2]} 28. Rc1 {[%clk 0:00:59.9]} 28... Nd2 {[%clk
0:00:16.4]} 29. Ne5 {[%clk 0:00:52.7]} 29... Rd5 {[%clk 0:00:16.3]} 30. f4
{[%clk 0:00:48.9]} 30... Ne4 {[%clk 0:00:13.6]} 31. Rc8+ {[%clk 0:00:38.3]}
31... Kg7 {[%clk 0:00:12.9]} 32. Rc7 {[%clk 0:00:39.9]} 32... Nd6 {[%clk
0:00:12.1]} 33. Rd7 {[%clk 0:00:40.8]} 33... Rd1+ {[%clk 0:00:12.3]} 34. Kg2
{[%clk 0:00:40.9]} 34... Rd2+ {[%clk 0:00:12.9]} 35. Kh3 {[%clk 0:00:40.2]}
35... Ne4 {[%clk 0:00:11.3]} 36. Rxf7+ {[%clk 0:00:39.9]} 36... Kg8 {[%clk
0:00:12.4]} 37. Rxb7 {[%clk 0:00:41.2]} 37... Nf2+ {[%clk 0:00:12.5]} 38. Kh4
{[%clk 0:00:42]} 38... Ne4 {[%clk 0:00:13.9]} 39. Ng4 {[%clk 0:00:37.8]} 39...
Nd6 {[%clk 0:00:12.6]} 40. Rxa7 {[%clk 0:00:35]} 40... Kf8 {[%clk 0:00:09.6]}
41. Kg5 {[%clk 0:00:33.7]} 41... Rd5+ {[%clk 0:00:10.1]} 42. Ne5 {[%clk
0:00:32.7]} 42... Rd2 {[%clk 0:00:10.9]} 43. Nxg6+ {[%clk 0:00:31.1]} 43... Ke8
{[%clk 0:00:11.9]} 44. f5 {[%clk 0:00:32]} 44... Rf2 {[%clk 0:00:11.4]} 45. g4
{[%clk 0:00:24.1]} 45... Ne4+ {[%clk 0:00:10.8]} 46. Kh6 {[%clk 0:00:25.6]}
46... Rxh2+ {[%clk 0:00:11.5]} 47. Kg7 {[%clk 0:00:27.1]} 47... Rg2 {[%clk
0:00:12.3]} 48. Re7+ {[%clk 0:00:27.1]} 48... Kd8 {[%clk 0:00:12.6]} 49. Rxe4
{[%clk 0:00:29]} 1-0